bitfinex-derivatives/quotes_SOLF0:USTF0_20220101
["timestamp","ask_amount","ask_price","bid_price","bid_amount"]
[1641007126716,45.02690833,172.64,172.6,5.783]
[1641007126918,42.02690833,172.64,172.6,5.783]
[1641007127116,12.33600833,172.64,172.6,5.783]
[1641007127517,12.33600833,172.65,172.6,5.783]
[1641007127917,3.0,172.64,172.6,5.783]
[1641007128216,12.33600833,172.64,172.59,4.11257077]
[1641007128617,12.33600833,172.64,172.57,4.11257077]
[1641007128817,19.23838262,172.65,172.57,34.77464964]
[1641007128818,12.33600833,172.63,172.57,34.77464964]
[1641007129418,12.33600833,172.63,172.57,33.55847077]
[1641007132221,12.33600833,172.65,172.59,4.11257077]
[1641007132420,12.33600833,172.65,172.59,10.47457077]
[1641007132919,40.00079833,172.66,172.6,5.3288103]
[1641007134321,40.00079833,172.66,172.6,4.11257077]
[1641007134523,12.33600833,172.65,172.59,10.47457077]
[1641007134922,12.33600833,172.65,172.61,4.11257077]
[1641007136927,12.33600833,172.65,172.6,1.21801355]
[1641007136928,40.00079833,172.66,172.62,4.11257077]
[1641007140228,3.0,172.64,172.61,1.21801355]
[1641007141032,15.33600833,172.64,172.57,1.21801355]
[1641007141432,27.66479,172.63,172.57,1.21801355]
[1641007141831,40.00079833,172.63,172.55,19.47525331]
[1641007142232,27.66479,172.63,172.55,19.47525331]
[1641007142433,57.68039,172.63,172.55,19.47525331]
[1641007142933,70.02118762,172.63,172.55,19.47525331]
[1641007143432,57.68039,172.63,172.55,19.47525331]
[1641007144033,57.68039,172.63,172.55,13.48496384]
[1641007144233,12.3408005,172.62,172.55,1.21795547]
[1641007144836,27.66479,172.66,172.55,19.4495196]
[1641007145037,27.66479,172.66,172.55,24.6865196]
[1641007145436,27.66479,172.66,172.57,27.66479]
[1641007145636,27.66479,172.66,172.58,31.4157]
[1641007145637,57.14979,172.66,172.58,31.4157]
[1641007146637,60.14979,172.66,172.58,31.4157]
[1641007146837,60.14979,172.66,172.58,24.83471851]
[1641007148138,57.14979,172.66,172.58,24.83471851]
[1641007151544,57.14979,172.66,172.59,1.21299721]
[1641007155446,3.0,172.63,172.59,1.21299721]
[1641007155844,3.0,172.62,172.59,1.21299721]
[1641007156044,3.0,172.62,172.58,1.21299721]
[1641007156945,3.0,172.62,172.55,19.4707457]
[1641007157645,27.66479,172.61,172.55,19.4707457]
[1641007159648,27.66479,172.61,172.55,13.48000558]
[1641007159849,27.66479,172.61,172.55,1.21299721]
[1641007167262,27.66479,172.61,172.56,12.26700837]
[1641007167961,27.66479,172.61,172.55,1.21299721]
[1641007170368,3.0,172.56,172.55,1.21299721]
[1641007170972,7.671,172.56,172.53,12.26700837]
[1641007171171,3.0,172.55,172.52,27.66479]
[1641007171571,4.671,172.56,172.52,27.66479]
[1641007172171,4.671,172.56,172.5,39.1027]
[1641007172370,3.0,172.57,172.5,39.1027]
[1641007172574,3.0,172.56,172.51,1.21298763]
[1641007172773,3.0,172.57,172.51,1.21298763]
[1641007175777,3.0,172.56,172.51,1.21298763]
[1641007177581,7.375,172.56,172.51,1.21298763]
[1641007178181,30.66479,172.55,172.51,1.21298763]
[1641007178782,27.66479,172.55,172.51,1.21298763]
[1641007178983,39.95106334,172.55,172.48,19.47138058]
[1641007179383,42.95106334,172.55,172.48,19.47138058]
[1641007179584,42.95106334,172.55,172.48,1.21298763]
[1641007179784,39.95106334,172.55,172.48,1.21298763]
[1641007180384,42.95106334,172.55,172.48,1.21298763]
[1641007180984,39.95106334,172.55,172.48,1.21298763]
[1641007181485,39.95106334,172.55,172.48,19.47140667]
[1641007182189,27.66479,172.55,172.49,12.26700837]
[1641007182589,3.0,172.54,172.49,12.26700837]
[1641007183089,30.66479,172.55,172.49,12.26700837]
[1641007183291,42.95106334,172.55,172.48,1.21298763]
[1641007184091,3.0,172.54,172.48,1.21298763]
[1641007185694,42.95106334,172.55,172.48,1.21298763]
[1641007185896,39.95106334,172.55,172.48,1.21298763]
[1641007186396,39.95106334,172.55,172.48,19.47151843]
[1641007186595,42.95106334,172.55,172.48,19.47151843]
[1641007187596,39.95106334,172.55,172.48,19.47151843]
[1641007188397,27.66479,172.55,172.49,12.26700837]
[1641007188596,27.66479,172.55,172.49,17.70500837]
[1641007188996,30.66479,172.55,172.5,1.21298763]
[1641007189396,27.66479,172.55,172.5,1.21298763]
[1641007189798,42.95106334,172.55,172.5,1.21298763]
[1641007191598,42.95106334,172.55,172.49,5.438]
[1641007191799,30.66479,172.55,172.49,5.438]
[1641007193800,30.66479,172.55,172.47,29.8257]
[1641007194001,3.0,172.54,172.47,29.8257]
[1641007194401,3.0,172.55,172.47,29.8257]
[1641007195003,30.66479,172.55,172.47,29.8257]
[1641007195802,3.0,172.55,172.47,29.8257]
[1641007197002,30.66479,172.55,172.47,29.8257]
[1641007197704,30.66479,172.55,172.48,19.47635769]
[1641007198705,27.66479,172.55,172.48,19.47635769]
[1641007198907,27.66479,172.55,172.48,1.21793018]
[1641007198908,39.95106334,172.55,172.48,1.21793018]
[1641007199105,42.95106334,172.55,172.48,1.21793018]
[1641007199307,39.95106334,172.55,172.48,1.21793018]
[1641007199505,42.95106334,172.55,172.48,1.21793018]
[1641007199706,42.95106334,172.55,172.48,19.47638466]
[1641007199906,39.95106334,172.55,172.48,19.47638466]
[1641007200406,39.95106334,172.55,172.51,4.1154684]
[1641007200608,39.95106334,172.55,172.51,10.7184684]
[1641007201008,39.95106334,172.55,172.52,5.33339858]
[1641007201211,27.66479,172.55,172.52,5.33339858]
[1641007204311,27.66479,172.55,172.52,4.1154684]
[1641007204513,39.95106334,172.55,172.51,10.7184684]
[1641007206313,12.28627334,172.55,172.51,10.7184684]
[1641007207613,39.95106334,172.55,172.51,10.7184684]
[1641007207813,27.66479,172.55,172.51,6.603]
[1641007208015,27.66479,172.55,172.47,42.09270837]
[1641007208614,40.01053814,172.55,172.51,4.11524938]
[1641007208814,40.01053814,172.55,172.51,10.38924938]
[1641007209014,27.66479,172.55,172.51,6.274]
[1641007209717,27.66479,172.55,172.51,10.38924303]
[1641007209920,43.01051908,172.55,172.51,10.38924303]
[1641007210122,3.0,172.52,172.51,4.11524303]
[1641007210322,7.441,172.52,172.47,12.26700837]
[1641007210520,7.441,172.52,172.5,4.11552559]
[1641007210921,4.441,172.52,172.5,4.11552559]
[1641007211120,7.441,172.52,172.5,4.11552559]
[1641007211322,3.0,172.51,172.5,4.11552559]
[1641007211521,3.0,172.52,172.5,4.11552559]
[1641007211720,27.66479,172.51,172.46,12.26700837]
[1641007211919,40.01136676,172.51,172.43,13.48458335]
[1641007212120,31.5357,172.5,172.43,13.48458335]
[1641007213122,43.88227676,172.5,172.43,1.21757498]
[1641007213823,31.5357,172.5,172.43,1.21757498]
[1641007214423,43.88537788,172.5,172.43,1.21757498]
[1641007215122,31.5357,172.5,172.43,1.21757498]
[1641007215322,3.0,172.49,172.43,1.21757498]
[1641007216424,3.0,172.49,172.42,20.86700837]
[1641007216623,15.34990041,172.49,172.42,8.6]
[1641007217522,3.0,172.49,172.43,1.21780722]
[1641007217922,34.5357,172.5,172.43,1.21780722]
[1641007218323,12.35003383,172.49,172.42,8.6]
[1641007219025,34.5357,172.5,172.43,1.2175512]
[1641007219723,31.5357,172.5,172.43,1.2175512]
[1641007219924,31.5357,172.5,172.43,13.48455957]
[1641007220526,55.32958,172.51,172.43,13.48455957]
[1641007220726,12.35006271,172.5,172.43,1.2175512]
[1641007221226,3.0,172.53,172.43,1.2175512]
[1641007221428,3.0,172.53,172.46,12.26700837]
[1641007221627,3.0,172.52,172.46,17.54700837]
[1641007221825,27.66479,172.5,172.46,17.54700837]
[1641007222228,27.66479,172.5,172.47,1.2175512]
[1641007222727,3.0,172.49,172.47,1.2175512]
[1641007223128,30.66479,172.5,172.45,12.26700837]
[1641007223532,25.59434142,172.5,172.45,12.26700837]
[1641007223933,25.59434142,172.5,172.42,57.32131026]
[1641007223934,37.94450082,172.5,172.43,13.48455017]
[1641007224134,34.94450082,172.5,172.43,13.48455017]
[1641007224735,34.94450082,172.5,172.44,12.26700837]
[1641007224736,52.91854142,172.5,172.44,12.26700837]
[1641007225233,52.91854142,172.5,172.44,16.93400837]
[1641007225935,55.91854142,172.5,172.44,16.93400837]
[1641007226134,55.91854142,172.5,172.45,1.2175418]
[1641007226335,52.91854142,172.5,172.45,1.2175418]
[1641007227742,55.91854142,172.5,172.45,1.2175418]
[1641007228941,68.26870082,172.5,172.42,19.47577054]
[1641007231145,12.3501594,172.49,172.42,1.2175418]
[1641007232445,12.3501594,172.49,172.42,19.47580962]
[1641007233048,12.3501594,172.49,172.42,1.2175418]
[1641007234350,68.26870082,172.5,172.42,19.47498731]
[1641007235152,12.3501594,172.49,172.42,19.47498731]
[1641007237654,68.26870082,172.5,172.42,19.47498731]
[1641007239664,65.26870082,172.5,172.42,19.47498731]
[1641007239859,34.94450082,172.5,172.42,19.47498731]
[1641007240057,12.3501594,172.5,172.42,19.47498731]
[1641007240258,40.0149494,172.53,172.45,12.26700837]
[1641007240459,40.0149494,172.53,172.45,18.63000837]
[1641007241559,40.0149494,172.53,172.46,1.2175418]
[1641007242362,12.3501594,172.52,172.46,1.2175418]
[1641007244160,3.0,172.51,172.46,1.2175418]
[1641007244462,12.3501594,172.52,172.46,1.2175418]
[1641007244863,12.3501594,172.52,172.45,6.363]
[1641007244864,12.3501594,172.49,172.45,6.363]
[1641007245661,12.3501594,172.51,172.46,1.21727354]
[1641007249970,12.3501594,172.52,172.46,1.21727354]
[1641007252476,40.0149494,172.52,172.46,1.21727354]
[1641007253375,27.66479,172.52,172.46,1.21727354]
[1641007258679,12.3501594,172.53,172.46,1.21727354]
[1641007259381,27.66479,172.51,172.46,1.21727354]
[1641007261983,40.0149494,172.51,172.46,1.21727354]
[1641007265087,12.3501594,172.51,172.46,1.21727354]
[1641007265588,12.3501594,172.52,172.46,1.21727354]
[1641007265789,27.66479,172.51,172.46,1.21727354]
[1641007270494,27.66479,172.51,172.48,4.11609919]
[1641007270795,12.3501594,172.52,172.48,4.11609919]
[1641007272697,40.0149494,172.51,172.48,4.11609919]
[1641007273303,27.66479,172.51,172.48,4.11609919]
[1641007281011,12.3501594,172.53,172.49,4.11609919]
[1641007282913,15.3501594,172.53,172.49,4.11609919]
[1641007283114,12.3501594,172.53,172.49,4.11609919]
[1641007283314,12.3501594,172.53,172.45,13.48428191]
[1641007283512,3.0,172.48,172.45,13.48428191]
[1641007283712,4.297,172.48,172.45,13.48428191]
[1641007284013,7.297,172.48,172.45,13.48428191]
[1641007284214,4.297,172.48,172.45,13.48428191]
[1641007284612,4.297,172.48,172.44,1.21727354]
[1641007285013,27.66479,172.45,172.44,1.21727354]
[1641007285613,27.66479,172.45,172.41,12.26700837]
[1641007286615,22.61961425,172.45,172.41,12.26700837]
[1641007287416,22.61961425,172.45,172.4,13.48393462]
[1641007288720,43.16920321,172.48,172.4,13.48393462]
[1641007288920,43.16920321,172.48,172.4,45.11133462]
[1641007289722,43.16920321,172.48,172.41,1.21692625]
[1641007290223,27.66479,172.46,172.41,1.21692625]
[1641007291826,43.16920321,172.48,172.41,1.21692625]
[1641007292024,12.35090321,172.48,172.41,6.15292625]
[1641007292226,12.35090321,172.48,172.42,27.66479]
[1641007292626,63.18119,172.51,172.43,1.21692625]
[1641007292829,60.18119,172.51,172.43,1.21692625]
[1641007293428,60.18119,172.51,172.43,32.91832625]
[1641007294830,60.18119,172.51,172.44,1.21692625]
[1641007304044,60.18119,172.51,172.43,31.7014]
[1641007304340,72.53209321,172.51,172.43,31.7014]
[1641007304740,60.18119,172.51,172.43,31.7014]
[1641007305541,12.35090321,172.49,172.44,1.21666388]
[1641007311654,12.35090321,172.49,172.46,3.0]
[1641007311852,12.33707572,172.51,172.48,3.0]
[1641007312052,6.55877572,172.51,172.47,3.0]
[1641007312253,6.55877572,172.51,172.46,4.759]
[1641007312653,32.90319717,172.55,172.46,4.759]
[1641007312952,5.878,172.57,172.48,1.21666388]
[1641007313154,27.66479,172.55,172.48,1.21666388]
[1641007314053,27.66479,172.55,172.47,29.6687]
[1641007314252,10.45901819,172.54,172.47,29.6687]
[1641007314854,42.52581819,172.54,172.47,29.6687]
[1641007315055,42.52581819,172.54,172.48,1.21668269]
[1641007315856,32.0668,172.54,172.48,1.21668269]
[1641007323559,32.0668,172.54,172.48,6.24968269]
[1641007324561,32.0668,172.54,172.49,1.21668269]
[1641007325162,10.47210488,172.53,172.48,1.21668269]
[1641007332572,6.06,172.53,172.47,29.6687]
[1641007332771,9.06,172.53,172.44,8.74]
[1641007332973,3.0,172.52,172.42,30.4989]
[1641007333372,3.0,172.52,172.45,28.87857781]
[1641007333771,3.0,172.52,172.45,1.21378781]
[1641007334175,3.0,172.52,172.42,30.4989]
[1641007334676,32.4687,172.51,172.42,30.4989]
[1641007335376,27.66479,172.5,172.42,30.4989]
[1641007337679,32.4687,172.51,172.42,30.4989]
[1641007338080,27.66479,172.49,172.42,30.4989]
[1641007340083,10.4768441,172.48,172.43,1.21773338]
[1641007341286,27.66479,172.49,172.43,1.21773338]
[1641007342285,40.01461772,172.49,172.43,1.21773338]
[1641007343686,12.34982772,172.48,172.44,4.11686528]
[1641007345485,12.34982772,172.47,172.43,5.33459866]
[1641007347287,10.4763799,172.48,172.42,30.4989]
[1641007347490,10.4763799,172.48,172.44,4.11706051]
[1641007347989,10.4763799,172.48,172.44,8.97606051]
[1641007348189,65.37189717,172.51,172.44,4.859]
[1641007348390,12.35124105,172.48,172.44,4.859]
[1641007348991,27.66479,172.49,172.44,8.9761086]
[1641007349893,12.35114451,172.48,172.45,5.33480072]
[1641007350289,12.35114451,172.48,172.44,4.859]
[1641007350290,27.66479,172.49,172.44,4.859]
[1641007351192,27.66479,172.49,172.42,28.77060656]
[1641007359696,4.09474361,172.47,172.42,28.77060656]
[1641007362798,42.21918584,172.48,172.44,4.09476195]
[1641007362998,42.21918584,172.48,172.44,10.47376195]
[1641007363502,29.9349,172.48,172.45,5.31291914]
[1641007363702,39.94907584,172.49,172.45,5.31291914]
[1641007364203,39.94907584,172.49,172.45,4.09476195]
[1641007364406,12.28428584,172.48,172.44,10.47376195]
[1641007365203,39.94907584,172.49,172.45,5.31293292]
[1641007365605,12.28428584,172.49,172.46,4.09476195]
[1641007365808,12.28428584,172.5,172.46,4.09476195]
[1641007369110,12.28428584,172.5,172.47,4.09476195]
[1641007369808,12.28428584,172.5,172.44,5.31293292]
[1641007372512,12.28428584,172.5,172.43,31.75955195]
[1641007373111,12.28428584,172.5,172.44,5.31090687]
[1641007377916,4.10971333,172.47,172.45,4.09476195]
[1641007380718,32.0891,172.5,172.46,4.09476195]
[1641007380919,44.37338584,172.5,172.46,4.09476195]
[1641007381519,12.28428584,172.48,172.44,4.09476195]
[1641007382320,12.28428584,172.47,172.43,5.31090687]
[1641007384623,12.28428584,172.48,172.44,4.09476195]
[1641007385126,27.66479,172.47,172.44,4.09476195]
[1641007385426,39.94907584,172.47,172.43,5.31090687]
[1641007387827,12.28428584,172.47,172.43,5.31090687]
[1641007388529,12.28428584,172.48,172.44,4.09476195]
[1641007389130,12.28428584,172.48,172.43,5.31090687]
[1641007389531,27.66479,172.47,172.43,5.31090687]
[1641007390935,12.28428584,172.48,172.43,5.31090687]
[1641007391133,12.28428584,172.48,172.43,10.02390687]
[1641007391533,27.66479,172.47,172.43,10.02390687]
[1641007391934,27.66479,172.47,172.43,8.80776195]
[1641007392534,27.66479,172.47,172.44,5.31156489]
[1641007393940,12.28428584,172.49,172.44,5.31156489]
[1641007395440,27.66479,172.47,172.44,5.31156489]
[1641007396240,4.11311838,172.45,172.44,5.31156489]
[1641007398142,4.11311838,172.45,172.44,4.09476195]
[1641007398545,8.72511838,172.45,172.44,4.09476195]
[1641007398745,8.72511838,172.45,172.43,1e-08]
[1641007399047,4.612,172.45,172.4,12.34982772]
[1641007399244,4.612,172.45,172.39,18.33736618]
[1641007399645,30.9899,172.46,172.39,18.33736618]
[1641007399844,30.9899,172.46,172.39,16.77882772]
[1641007400047,12.28428584,172.45,172.39,4.429]
[1641007401146,12.28428584,172.44,172.39,4.429]
[1641007405052,12.28428584,172.44,172.38,27.66479]
[1641007408357,43.27418584,172.46,172.38,12.34982772]
[1641007408558,43.27418584,172.46,172.38,19.14082772]
[1641007409258,43.27418584,172.46,172.38,25.1327671]
[1641007409561,70.93897584,172.46,172.38,25.1327671]
[1641007411863,58.65469,172.46,172.38,25.1327671]
[1641007412367,58.65469,172.46,172.38,19.14082772]
[1641007412564,58.65469,172.46,172.38,6.791]
[1641007413865,58.65469,172.46,172.37,71.76541772]
[1641007414465,52.06657315,172.46,172.37,71.76541772]
[1641007414666,27.66479,172.46,172.37,71.76541772]
[1641007414866,12.32385457,172.48,172.38,3.0]
[1641007415065,12.32385457,172.48,172.38,11.54574723]
[1641007415466,12.32385457,172.48,172.38,8.54574723]
[1641007415767,12.32385457,172.48,172.41,27.66479]
[1641007415966,12.32385457,172.49,172.41,27.66479]
[1641007416166,12.32385457,172.49,172.42,30.1023]
[1641007416367,12.32385457,172.49,172.42,34.7503]
[1641007419072,71.71044457,172.5,172.42,34.7503]
[1641007420974,71.71044457,172.5,172.42,4.648]
[1641007421175,5.79542162,172.48,172.42,4.648]
[1641007421375,71.71044457,172.5,172.39,30.5589]
[1641007422476,12.32385457,172.48,172.39,30.5589]
[1641007422973,12.32385457,172.49,172.39,30.5589]
[1641007424679,12.32385457,172.49,172.39,42.90872772]
[1641007424981,12.32385457,172.47,172.39,42.90872772]
[1641007426779,12.32385457,172.45,172.39,30.5589]
[1641007427885,39.98864457,172.45,172.39,30.5589]
[1641007430690,27.66479,172.45,172.39,42.90872772]
[1641007432090,27.66479,172.45,172.39,30.5589]
[1641007434494,42.24655457,172.47,172.39,30.5589]
[1641007434794,12.32385457,172.47,172.39,33.5589]
[1641007435093,12.32385457,172.47,172.39,36.85220243]
[1641007435497,27.66479,172.5,172.43,12.34982772]
[1641007435693,27.66479,172.5,172.43,17.47482772]
[1641007437497,27.66479,172.5,172.43,5.125]
[1641007437698,27.66479,172.5,172.43,36.9432]
[1641007438901,39.98864457,172.5,172.43,36.9432]
[1641007439100,45.78339453,172.5,172.41,12.34982772]
[1641007439302,3.0,172.49,172.41,12.34982772]
[1641007439498,3.0,172.48,172.41,12.34982772]
[1641007439701,8.79575751,172.47,172.41,12.34982772]
[1641007439901,18.11961208,172.47,172.4,1.21651285]
[1641007440101,27.66479,172.43,172.4,1.21651285]
[1641007440901,12.32385457,172.45,172.38,1.21651285]
[1641007442103,27.66479,172.43,172.38,1.21651285]
[1641007446008,12.32385457,172.45,172.38,1.21651285]
[1641007446206,12.32385457,172.45,172.38,6.87751285]
[1641007446608,27.66479,172.43,172.39,1.21651285]
[1641007448010,27.66479,172.43,172.38,1.21651285]
[1641007449012,27.66479,172.43,172.38,19.55775336]
[1641007453021,27.66479,172.43,172.38,1.21651285]
[1641007454822,27.66479,172.43,172.38,7.77751285]
[1641007455025,32.92779,172.43,172.38,1.21651285]
[1641007455222,32.92779,172.43,172.35,24.40416718]
[1641007455425,35.92779,172.43,172.35,15.64416718]
[1641007455623,32.92779,172.43,172.35,15.64416718]
[1641007456026,45.25164457,172.43,172.35,3.29433946]
[1641007456424,45.25164457,172.43,172.34,30.9484]
[1641007459527,4.11258005,172.39,172.37,4.11258005]
[1641007459726,9.33658005,172.39,172.37,4.11258005]
[1641007461029,4.11258005,172.41,172.35,18.33299118]
[1641007461729,72.18484457,172.43,172.39,4.11810178]
[1641007464031,72.18484457,172.43,172.4,4.11810178]
[1641007464631,39.98864457,172.43,172.39,4.11810178]
[1641007465332,39.98864457,172.43,172.4,4.11810178]
[1641007468432,12.32385457,172.42,172.38,4.11810178]
[1641007473840,39.98864457,172.43,172.36,4.11810178]
[1641007476047,12.32385457,172.43,172.37,3.0]
[1641007476246,12.32385457,172.44,172.37,7.1106291]
[1641007476646,12.32385457,172.44,172.37,4.1106291]
[1641007477047,4.11000161,172.43,172.4,4.11000161]
[1641007477248,4.11000161,172.43,172.4,40.50830161]
[1641007477851,4.11000161,172.43,172.4,9.49000161]
[1641007478053,71.42544457,172.47,172.4,5.38]
[1641007478352,71.42544457,172.47,172.4,36.462]
[1641007478652,4.10984254,172.43,172.4,40.57184254]
[1641007478853,4.10984254,172.43,172.4,9.48984254]
[1641007479254,71.42544457,172.47,172.4,5.38]
[1641007479454,71.42544457,172.47,172.4,35.7222]
[1641007480054,4.11000289,172.42,172.4,39.83220289]
[1641007480255,4.11000289,172.42,172.4,9.49000289]
[1641007480860,12.32385457,172.46,172.4,5.38]
[1641007481661,4.11002384,172.42,172.4,9.49002384]
[1641007482362,12.32385457,172.46,172.4,5.38]
[1641007482562,12.32385457,172.46,172.39,27.66479]
[1641007483363,4.11005729,172.42,172.4,4.11005729]
[1641007483961,12.32385457,172.46,172.39,27.66479]
[1641007484162,12.32385457,172.44,172.39,27.66479]
[1641007484863,10.47935489,172.46,172.4,4.11766279]
[1641007485463,12.3529732,172.44,172.39,36.14479]
[1641007486265,12.3529732,172.44,172.4,4.11766784]
[1641007486866,12.3529732,172.44,172.39,36.14479]
[1641007487367,12.3529732,172.44,172.39,8.48]
[1641007487868,12.3529732,172.44,172.4,4.11768555]
[1641007488368,12.3529732,172.44,172.39,8.48]
[1641007489169,12.3529732,172.44,172.4,4.11769974]
[1641007490369,12.3529732,172.44,172.39,8.48]
[1641007491172,12.3529732,172.43,172.39,12.59808356]
[1641007491771,10.47935489,172.44,172.39,8.48]
[1641007492473,12.35529409,172.42,172.39,8.48]
[1641007492674,12.35529409,172.42,172.38,4.11843136]
[1641007493275,12.35529409,172.42,172.37,38.8578]
[1641007493478,12.35529409,172.4,172.37,38.8578]
[1641007493675,12.35529409,172.4,172.37,8.8]
[1641007493976,32.3191,172.43,172.37,8.8]
[1641007494276,12.3556882,172.41,172.37,12.91856273]
[1641007494878,10.47935489,172.42,172.37,8.8]
[1641007495776,12.35524445,172.42,172.38,5.33562265]
[1641007496778,12.35524445,172.42,172.37,8.8]
[1641007497377,12.35524445,172.42,172.37,12.91529784]
[1641007497981,12.35524445,172.42,172.37,8.8]
[1641007498681,12.35524445,172.42,172.37,12.91528699]
[1641007499287,12.35524445,172.42,172.37,8.8]
[1641007499687,3.0,172.41,172.37,8.8]
[1641007499888,3.0,172.4,172.36,27.66479]
[1641007500091,12.35524445,172.42,172.33,12.34982772]
[1641007500092,4.11530297,172.38,172.37,4.11530297]
[1641007500592,40.02003445,172.42,172.33,40.01461772]
[1641007500791,12.35524445,172.4,172.35,4.11570082]
[1641007501590,4.11554849,172.37,172.34,30.4015]
[1641007501791,4.11554849,172.37,172.33,27.66479]
[1641007502195,12.35524445,172.41,172.36,4.11540902]
[1641007502491,12.35524445,172.41,172.36,8.70340902]
[1641007502890,4.11540009,172.37,172.36,4.588]
[1641007503691,4.11808654,172.39,172.36,5.80524066]
[1641007504491,27.66479,172.45,172.36,4.588]
[1641007504692,27.66479,172.45,172.38,4.11816222]
[1641007504892,27.66479,172.45,172.38,36.52506222]
[1641007505993,12.35423109,172.43,172.39,4.11807703]
[1641007506995,10.4809458,172.44,172.38,32.4069]
[1641007507194,10.4809458,172.44,172.39,1.21724246]
[1641007507793,12.35379024,172.44,172.4,4.11793008]
[1641007507995,32.90319717,172.48,172.4,10.30093008]
[1641007508196,32.90319717,172.48,172.43,27.66479]
[1641007508797,27.66479,172.51,172.46,4.11649576]
[1641007508997,27.66479,172.51,172.46,9.73449576]
[1641007509600,27.66479,172.51,172.46,5.618]
[1641007510298,27.66479,172.51,172.46,9.73449026]
[1641007511200,27.66479,172.51,172.47,5.33473363]
[1641007511800,27.66479,172.51,172.44,32.2609]
[1641007512000,27.66479,172.51,172.48,4.11623637]
[1641007512602,27.66479,172.51,172.47,4.11632543]
[1641007513102,27.66479,172.51,172.45,1.21845787]
[1641007513402,29.4561,172.54,172.45,1.21845787]
[1641007514003,29.4561,172.54,172.44,32.2609]
[1641007514302,27.66479,172.51,172.46,4.11627124]
[1641007514704,27.66479,172.51,172.45,1.21845791]
[1641007515305,27.66479,172.51,172.46,4.1162674]
[1641007516106,27.66479,172.51,172.45,1.21845653]
[1641007516905,94.55308717,172.54,172.46,4.11627495]
[1641007517308,90.02408717,172.54,172.46,4.11627495]
[1641007517707,3.0,172.51,172.45,1.21845665]
[1641007517907,3.0,172.49,172.45,1.21845665]
[1641007518207,9.746,172.49,172.45,1.21845665]
[1641007518408,27.66479,172.48,172.43,4.11701494]
[1641007518807,30.66479,172.48,172.43,4.11701494]
[1641007519009,27.66479,172.48,172.43,4.11701494]
[1641007519208,27.66479,172.48,172.41,1.21838351]
[1641007519209,27.66479,172.48,172.37,40.519]
[1641007519412,29.4285,172.47,172.41,4.11747521]
[1641007519611,27.66479,172.48,172.41,4.11747521]
[1641007519914,27.66479,172.48,172.37,40.519]
[1641007520113,92.15508717,172.48,172.4,4.11764688]
[1641007520313,27.66479,172.45,172.4,4.11764688]
[1641007520516,33.47079,172.45,172.4,4.11764688]
[1641007520714,33.47079,172.45,172.37,40.519]
[1641007520913,33.47079,172.45,172.41,4.11765518]
[1641007521514,33.47079,172.45,172.37,40.519]
[1641007521515,33.47079,172.45,172.38,1.21831863]
[1641007522315,33.47079,172.45,172.41,4.1176583]
[1641007523115,33.47079,172.45,172.38,1.21831863]
[1641007523916,33.47079,172.45,172.41,4.11767731]
[1641007524516,33.47079,172.45,172.38,1.21831863]
[1641007524920,27.66479,172.45,172.38,1.21831863]
[1641007525122,27.66479,172.45,172.41,4.11765984]
[1641007525718,27.66479,172.45,172.38,6.319]
[1641007525917,27.66479,172.45,172.38,7.53731008]
[1641007526119,67.49029717,172.48,172.38,7.53731008]
[1641007526519,67.49029717,172.48,172.41,4.11775791]
[1641007526720,27.66479,172.45,172.41,4.11775791]
[1641007527121,27.66479,172.45,172.38,6.319]
[1641007527319,27.66479,172.45,172.37,40.519]
[1641007527920,64.49029717,172.48,172.41,4.11776028]
[1641007528619,10.4770472,172.47,172.4,4.11776126]
[1641007529019,27.66479,172.45,172.4,4.11776126]
[1641007529421,27.66479,172.45,172.38,1.21830856]
[1641007529621,10.4770472,172.47,172.38,1.21830856]
[1641007529823,64.49029717,172.48,172.4,4.11776508]
[1641007530424,10.47706223,172.47,172.37,40.519]
[1641007530623,10.47706223,172.47,172.38,1.21830846]
[1641007531022,27.66479,172.45,172.38,1.21830846]
[1641007531224,27.66479,172.45,172.4,4.11776758]
[1641007531623,27.66479,172.45,172.38,1.218308]
[1641007532323,27.66479,172.45,172.37,40.519]
[1641007532522,27.66479,172.45,172.4,4.11777183]
[1641007532925,27.66479,172.45,172.37,40.519]
[1641007533125,27.66479,172.45,172.38,1.21830853]
[1641007534125,27.66479,172.45,172.37,40.519]
[1641007534324,27.66479,172.45,172.4,4.11776346]
[1641007534824,27.66479,172.45,172.38,1.2183097]
[1641007535625,27.66479,172.45,172.4,4.11775391]